fUSD/lending_fUSD_20240121
["ID","MTS","AMOUNT","RATE_DAILY","PERIOD"]
[312383302,1705848652749,-150.0,0.00036051,2]
[312383303,1705848652759,-150.0,0.00036054,2]
[312383304,1705848652768,-150.0,0.00036054,2]
[312383305,1705848652779,-150.0,0.00036057,2]
[312383306,1705848652789,-150.0,0.00036061,2]
[312383307,1705848652798,-150.0,0.00036072,2]
[312383308,1705848652809,-150.0,0.00036082,2]
[312383309,1705848652819,-150.0,0.00036083,2]
[312383310,1705848652830,-150.0,0.00036089,2]
[312383311,1705848652839,-150.0,0.00036091,2]
[312383312,1705848652848,-150.0,0.00036094,2]
[312383313,1705848652858,-150.0,0.00036099,2]
[312383314,1705848652867,-150.0,0.00036099,2]
[312383315,1705848652877,-150.0,0.00036101,2]
[312383316,1705848652886,-150.0,0.00036123,2]
[312383317,1705848652896,-150.0,0.0003613,2]
[312383318,1705848652908,-150.0,0.00036141,2]
[312383319,1705848652918,-150.0,0.00036142,2]
[312383320,1705848652928,-150.0,0.00036143,2]
[312383321,1705848652937,-150.0,0.0003615,2]
[312383322,1705848652948,-150.0,0.00036154,2]
[312383323,1705848652957,-150.0,0.00036155,2]
[312383324,1705848652967,-150.0,0.00036157,2]
[312383325,1705848652976,-150.0,0.00036158,2]
[312383326,1705848652986,-150.0,0.00036159,2]
[312383327,1705848652995,-150.0,0.00036162,2]
[312383328,1705848653005,-150.0,0.00036171,2]
[312383329,1705848653016,-150.0,0.00036183,2]
[312383330,1705848653025,-150.0,0.00036189,2]
[312383331,1705848653035,-150.0,0.00036192,2]
[312383332,1705848653044,-150.0,0.00036198,2]
[312383333,1705848653053,-150.0,0.00036204,2]
[312383334,1705848653063,-150.0,0.00036207,2]
[312383335,1705848653073,-150.0,0.00036216,2]
[312383336,1705848653083,-150.0,0.0003622,2]
[312383337,1705848653092,-150.0,0.00036224,2]
[312383338,1705848653101,-150.0,0.00036231,2]
[312383339,1705848653111,-150.0,0.00036245,2]
[312383340,1705848653121,-150.0,0.00036247,2]
[312383341,1705848653131,-150.0,0.00036247,2]
[312383342,1705848653141,-150.0,0.00036249,2]
[312383343,1705848653150,-150.0,0.00036253,2]
[312383344,1705848653160,-150.0,0.00036257,2]
[312383345,1705848653169,-150.0,0.00036262,2]
[312383346,1705848653178,-150.0,0.00036264,2]
[312383347,1705848653187,-150.0,0.00036272,2]
[312383348,1705848653196,-101297.39627299,0.00036308,7]
[312383349,1705848653205,-4681.85050894,0.00036308,7]
[312383350,1705848653214,-248.77662521,0.00036308,7]
[312383351,1705848653223,-7392.48114814,0.00036308,7]
[312383352,1705848653233,-498.01634032,0.00036308,7]
[312383353,1705848653242,-388.97649686,0.00036308,7]
[312383354,1705848653254,-78458.78246162,0.00036308,7]
[312383355,1705848653267,-661.39335036,0.00036308,7]
[312383356,1705848653281,-2081.79376849,0.00036308,7]
[312383357,1705848653293,-388.35687835,0.00036308,7]
[312383358,1705848653436,-150.0,0.00036047,2]
[312383359,1705848653447,-150.0,0.00036104,2]
[312383360,1705848653458,-150.0,0.00036137,2]
[312383361,1705848653467,-150.0,0.00036139,2]
[312383362,1705848653476,-150.0,0.00036176,2]
[312383363,1705848653485,-150.0,0.00036204,2]
[312383364,1705848653494,-1670.45453968,0.00036308,7]
[312383365,1705848653620,-150.0,0.00036214,2]
[312383366,1705848653629,-755.02,0.00036308,7]
[312383367,1705848653641,-286.08556777,0.00036308,7]
[312383368,1705848653652,-11255.99856032,0.00036308,7]
[312383369,1705848653751,-150.0,0.00036076,2]
[312383370,1705848653760,-923.80008825,0.00036308,7]
[312383371,1705848653771,-716.28058986,0.00036308,7]
[312383372,1705848653783,-5754.62408953,0.00036308,7]
[312383373,1705848753482,182.79,0.00024761,120]
[312383374,1705848754433,182.79,0.00030951,120]
[312383376,1705848857107,250.0,0.00036325,30]
[312383378,1705848968704,358.71849914,0.00017598,2]
[312383379,1705848996673,155.0,0.00017598,2]
[312383380,1705848996699,155.0,0.00017598,2]
[312383381,1705848998163,7429.46081831,0.00017598,2]
[312383382,1705848999616,155.0,0.00017598,2]
[312383383,1705849000751,885.78577679,0.00017598,2]
[312383385,1705849012774,155.0,0.00017598,2]
[312383386,1705849012804,265.31571528,0.00017598,2]
[312383387,1705849014189,6298.05346387,0.00017598,2]
[312383388,1705849016066,883.62733182,0.00017598,2]
[312383389,1705849018876,155.0,0.00017597,2]
[312383390,1705849019741,155.0,0.00017598,2]
[312383391,1705849032857,306.54663149,0.00017598,2]
[312383393,1705849114143,205.0,0.00019493,2]
[312383394,1705849158828,191.81,0.00016805,2]
[312383397,1705849257090,285.38,0.00018795,2]
[312383399,1705849522325,-427.04,0.00020664,2]
[312383400,1705849522347,-1117.54,0.00020666,2]
[312383401,1705849522367,-203.14380127,0.00020669,2]
[312383402,1705849522387,-1002.27619873,0.0002067,2]
[312383403,1705849615051,360.95543365,0.00016534,2]
[312383409,1705849633075,361.07949794,0.00016534,2]
[312383410,1705849646877,364.73462471,0.00018395,2]
[312383411,1705849646901,82.86463807,0.00018395,2]
[312383412,1705849650909,292.32492895,0.00016534,2]
[312383413,1705849652084,1034.11803151,0.00016534,2]
[312383414,1705849654540,479.07903654,0.00016534,2]
[312383415,1705849654561,1416.2717549,0.00016534,2]
[312383416,1705849654596,544.61632304,0.00016534,2]
[312383417,1705849655809,39.11192206,0.00016534,2]
[312383418,1705849655830,2000.0,0.00016534,2]
[312383419,1705849655852,2000.0,0.00016534,2]
[312383420,1705849655874,2000.0,0.00016534,2]
[312383421,1705849655895,48.95632217,0.00016534,2]
[312383422,1705849656496,1951.04367783,0.00016534,2]
[312383423,1705849656518,2000.0,0.00016534,2]
[312383424,1705849656540,1243.91056194,0.00016534,2]
[312383425,1705849657079,361.07949794,0.00016534,2]
[312383426,1705849657795,395.00994012,0.00016534,2]
[312383427,1705849657816,2000.0,0.00016534,2]
[312383428,1705849657836,2000.0,0.00016534,2]
[312383429,1705849657857,2000.0,0.00016534,2]
[312383430,1705849657880,2000.0,0.00016534,2]
[312383431,1705849657902,2000.0,0.00016534,2]
[312383432,1705849657929,2000.0,0.00016534,2]
[312383433,1705849657951,2000.0,0.00016534,2]
[312383434,1705849657973,2000.0,0.00016534,2]
[312383435,1705849657995,2000.0,0.00016534,2]
[312383436,1705849658017,2000.0,0.00016534,2]
[312383437,1705849658039,2000.0,0.00016534,2]
[312383438,1705849658066,28199.94484901,0.00016534,2]
[312383439,1705849658103,284.43760212,0.00016534,2]
[312383440,1705849662267,235.02562371,0.00016534,2]
[312383441,1705849666098,1104.88737279,0.00016534,2]
[312383442,1705849668897,292.32492895,0.00016534,2]
[312383443,1705849669779,6088.06824423,0.00016534,2]
[312383444,1705849670268,545.71723209,0.00016534,2]
[312383445,1705849671769,3899.31435022,0.00016534,2]
[312383446,1705849673569,451.02976153,0.00017598,2]
[312383447,1705849673784,284.43760212,0.00016534,2]
[312383448,1705849674236,1771.72376486,0.00016534,2]
[312383449,1705849676869,5194.95423977,0.00016534,2]
[312383450,1705849682271,235.02562371,0.00016534,2]
[312383451,1705849684575,1277.48563196,0.00016534,5]
[312383452,1705849688944,291.51512476,0.00016534,2]
[312383453,1705849691777,3518.4405472,0.00016534,2]
[312383454,1705849691895,284.43760212,0.00016534,2]
[312383455,1705849692420,289.68,0.00018614,2]
[312383456,1705849696560,5126.6591485,0.00016534,2]
[312383457,1705849702332,281.96701068,0.00016534,2]
[312383458,1705849709563,-2227.66342781,0.00019797,5]
[312383459,1705849711786,378.62443341,0.00016534,2]
[312383460,1705849713170,143.71213878,0.00019796,2]
[312383461,1705849756568,1278.39858709,0.00016534,5]
[312383462,1705849807202,-2903.66792719,0.00019792,2]
[312383463,1705849807225,-521.09835095,0.00019793,2]
[312383464,1705849807247,-203.14380127,0.00019794,2]
[312383465,1705849807267,-1278.39858709,0.00019796,5]
[312383466,1705849818575,1278.39858709,0.00016534,5]
[312383467,1705849820408,164.91642352,0.00019696,2]
[312383472,1705849831558,-164.91642352,0.00020097,2]
[312383473,1705849831569,-365.68476459,0.00020462,2]
[312383474,1705849831616,-54.12102436,0.00020462,2]
[312383475,1705849831626,-178.31,0.00020463,2]
[312383476,1705849831637,-1000.0,0.00020489,2]
[312383477,1705849831647,-164.91642352,0.00020497,2]
[312383478,1705849831657,-57.62348638,0.00020548,2]
[312383479,1705849831669,-259.64046275,0.00020548,2]
[312383480,1705849831703,-709.57283364,0.00020548,2]
[312383481,1705849831715,-790.90110218,0.00020548,2]
[312383482,1705849831727,-182.26211505,0.00020548,2]
[312383483,1705849831736,-117.14602895,0.00020608,2]
[312383484,1705849831748,-88.85397105,0.00020608,2]
[312383485,1705849831758,-500.0,0.00020609,2]
[312383486,1705849831767,-150.0,0.00020667,2]
[312383487,1705849831778,-272.87745219,0.00020668,2]
[312383488,1705849831787,-4350.83358686,0.00020668,2]
[312383489,1705849831796,-437.16278881,0.00020668,2]
[312383490,1705849831808,-79.46221728,0.00020668,2]
[312383491,1705849831817,-178.23275458,0.00020668,2]
[312383492,1705849831848,-308.92788157,0.00020668,2]
[312383493,1705849831857,-86.94369108,0.00020668,2]
[312383494,1705849831868,-2860.8635794,0.00020668,2]
[312383495,1705849831878,-265.56171591,0.00020668,2]
[312383496,1705849831888,-524.96209547,0.00020668,2]
[312383497,1705849831899,-1000.0,0.00020669,2]
[312383498,1705849831908,-3196.91798374,0.0002067,2]
[312383499,1705849831918,-5586.0116684,0.0002067,2]
[312383500,1705849831927,-3516.6789443,0.0002067,2]
[312383501,1705849831936,-220.64099561,0.0002067,2]
[312383502,1705849831947,-3005.83468397,0.0002067,2]
[312383503,1705849831957,-15626.36,0.00020671,2]
[312383504,1705849831967,-200.0,0.00020686,2]
[312383505,1705849831977,-499.99,0.00020689,2]
[312383506,1705849831986,-2995.08084602,0.00020701,2]
[312383507,1705849831995,-23890.0,0.00020702,2]
[312383508,1705849832005,-166.94,0.00020722,2]
[312383510,1705849832014,-157.51,0.00020797,2]
[312383511,1705849832023,-813.991716,0.00020797,2]
[312383513,1705849832035,-219.008284,0.00020797,2]
[312383515,1705849832045,-865.83,0.00020797,2]
[312383516,1705849832055,-289.68,0.00020878,2]
[312383517,1705849832065,-233.15598809,0.00020897,7]
[312383518,1705849832074,-157.51,0.00020917,2]
[312383519,1705849832084,-157.56,0.00020981,2]
[312383520,1705849832094,-425.400001,0.00021,2]
[312383521,1705849832103,-157.51,0.00021038,2]
[312383522,1705849832114,-157.51,0.00021158,2]
[312383523,1705849832124,-157.51,0.00021278,2]
[312383524,1705849832134,-157.51,0.00021399,2]
[312383525,1705849832143,-157.51,0.00021519,2]
[312383526,1705849832153,-2216.03692877,0.00021561,2]
[312383527,1705849832169,-578.10578071,0.00021561,2]
[312383528,1705849832181,-1430.67315782,0.00021561,2]
[312383529,1705849832217,-267.5,0.00021561,2]
[312383530,1705849832228,-137.6841327,0.00021561,2]
[312383531,1705849832238,-546.31,0.00021599,2]
[312383532,1705849832247,-157.51,0.0002164,2]
[312383533,1705849832257,-495.17,0.00021644,2]
[312383534,1705849832266,-157.51,0.0002176,2]
[312383535,1705849832275,-999.99,0.00021798,2]
[312383536,1705849832284,-157.51,0.0002188,2]
[312383537,1705849832293,-3161.02125544,0.00021899,2]
[312383538,1705849832309,-720.5078931,0.00021899,2]
[312383539,1705849832320,-3157.71987948,0.00021899,2]
[312383540,1705849832330,-175.74926153,0.00021899,2]
[312383541,1705849832339,-512.9196474,0.00021899,2]
[312383542,1705849832348,-750.0,0.000219,2]
[312383543,1705849832357,-250.0,0.000219,2]
[312383544,1705849832366,-160.33,0.00021905,2]
[312383545,1705849832375,-250.0,0.00021918,2]
[312383546,1705849832385,-134.98776733,0.0002198,2]
[312383547,1705849832396,-27.44043326,0.0002198,2]
[312383548,1705849832405,-449.61686331,0.00021989,2]
[312383549,1705849832417,-748.67532003,0.00021989,2]
[312383550,1705849832429,-1389.634,0.00021989,2]
[312383551,1705849832440,-11242.20292774,0.00021989,2]
[312383552,1705849832449,-2365.27598125,0.0002199,2]
[312383553,1705849832460,-376.9911017,0.0002199,2]
[312383554,1705849832480,-4296.98194497,0.0002199,2]
[312383555,1705849832489,-263.27985263,0.00021997,2]
[312383556,1705849832498,-3677.99176611,0.00021997,4]
[312383557,1705849832507,-3857.0754299,0.00021997,2]
[312383558,1705849832517,-523.92202884,0.00021997,2]
[312383559,1705849832526,-164.0104164,0.00021997,2]
[312383560,1705849832535,-317.24808781,0.00021997,2]
[312383561,1705849832545,-155.71965949,0.00021997,2]
[312383562,1705849832554,-5847.55223617,0.00021997,2]
[312383563,1705849832563,-2017.16752558,0.00021997,2]
[312383564,1705849832572,-203.14380127,0.00021997,2]
[312383565,1705849832581,-1691.31848568,0.00021997,2]
[312383566,1705849832591,-165.64404112,0.00021997,2]
[312383567,1705849832600,-6358.400639,0.00021998,2]
[312383568,1705849832609,-211.75204362,0.00021998,2]
[312383569,1705849832618,-1060.37719329,0.00021998,2]
[312383570,1705849832627,-180302.313777,0.00021999,2]
[312383571,1705849832639,-60262.21262542,0.00021999,2]
[312383572,1705849832650,-529.8845438,0.00021999,2]
[312383573,1705849832661,-695.69402603,0.00021999,2]
[312383574,1705849834568,723.02080288,0.00016534,5]
[312383576,1705849837950,-404.62,0.00020374,2]
[312383577,1705849837961,-164.91642352,0.00020898,2]
[312383578,1705849837970,-60727.24248021,0.00021999,2]
[312383579,1705849837981,-54263.66119503,0.00021999,2]
[312383580,1705849837993,-73449.55183605,0.00021999,2]
[312383581,1705849838010,-184389.60415132,0.00021999,2]
[312383582,1705849838023,-85794.77637302,0.00021999,2]
[312383583,1705849838035,-39652.62208967,0.00021999,2]
[312383585,1705849838048,-276.28339879,0.00021999,2]
[312383588,1705849838064,-508.69787488,0.00021999,2]
[312383589,1705849838075,-431.95013453,0.00021999,2]
[312383595,1705849838138,-3009.9384513,0.00021999,2]
[312383603,1705849838200,-258214.87203258,0.00021999,2]
[312383605,1705849838209,-150.85586616,0.00021999,2]
[312383607,1705849838221,-1250.0,0.00022,3]
[312383609,1705849838230,-416.0374,0.00022004,2]
[312383611,1705849838239,-512.91964735,0.00022042,2]
[312383613,1705849838248,-7039.24902792,0.00022081,2]
[312383615,1705849838256,-500.0,0.00022103,2]
[312383617,1705849838265,-7039.24902792,0.00022172,2]
[312383619,1705849838274,-512.91964735,0.00022185,2]
[312383621,1705849838284,-7039.24902792,0.00022263,2]
[312383623,1705849838292,-1117.54,0.0002231,2]
[312383625,1705849838301,-512.91964735,0.00022328,2]
[312383627,1705849838311,-7039.24902792,0.00022354,2]
[312383629,1705849838324,-495.17,0.00022445,2]
[312383631,1705849838334,-7039.24902792,0.00022445,2]
[312383633,1705849838344,-157.39,0.0002247,2]
[312383635,1705849838353,-512.91964735,0.00022471,2]
[312383637,1705849838363,-8452.14552393,0.000225,2]
[312383639,1705849838373,-7039.24902792,0.00022536,2]
[312383641,1705849838382,-512.91964735,0.00022614,2]
[312383644,1705849838392,-7039.24902792,0.00022627,2]
[312383646,1705849838401,-2836.9764,0.000227,2]
[312383648,1705849838410,-7039.24902792,0.00022718,2]
[312383650,1705849838420,-512.91964735,0.00022757,2]
[312383652,1705849838429,-500.0,0.00022799,2]
[312383654,1705849838439,-163837.9412,0.000228,2]
[312383655,1705849838450,-7039.24902792,0.00022809,2]
[312383657,1705849838460,-184.67736102,0.00022898,2]
[312383659,1705849838469,-236.66676764,0.00022898,2]
[312383661,1705849838478,-236.66676762,0.00022899,2]
[312383663,1705849838489,-1000.0,0.000229,2]
[312383665,1705849838499,-7039.24902792,0.000229,2]
[312383667,1705849838508,-151.39793635,0.000229,2]
[312383669,1705849838518,-55555.0,0.000229,2]
[312383672,1705849838528,-236.66676762,0.000229,2]
[312383674,1705849838537,-1099.38586377,0.000229,2]
[312383676,1705849838546,-512.91964735,0.000229,2]
[312383678,1705849838555,-1099.3858636,0.000229,2]
[312383680,1705849838565,-1099.3858636,0.000229,2]
[312383682,1705849838575,-1099.3858636,0.000229,2]
[312383684,1705849838584,-1099.3858636,0.000229,2]
[312383686,1705849838593,-1099.3858636,0.000229,2]
[312383688,1705849838604,-1099.3858636,0.000229,2]
[312383690,1705849838613,-1099.3858636,0.000229,2]
[312383692,1705849838622,-1099.3858636,0.000229,2]
[312383694,1705849838631,-344868.54951776,0.0002298,2]
[312383696,1705849838641,-299.90633046,0.00022998,2]
[312383698,1705849838655,-269.92500188,0.00022998,2]
[312383701,1705849838664,-200.80072244,0.00023,2]
[312383703,1705849838674,-1264669.97743139,0.00023,3]
[312383705,1705849838683,-3581256.98392825,0.00023,2]
[312383707,1705849838699,-368232.93041353,0.00023,2]
[312383710,1705849838711,-354584.75924408,0.00023,2]
[312383753,1705849839101,-25.40358021,0.00023,2]
[312383757,1705849839128,-30515.25380802,0.00023,2]
[312383760,1705849839152,-1822.64665156,0.00023,2]
[312383763,1705849839171,-3999.85962455,0.00023,2]
[312384026,1705849840839,-164.91642352,0.00021298,2]
[312384029,1705849840850,-1099.3858636,0.000229,2]
[312384032,1705849840859,-1799.2406665,0.00023,2]
[312384037,1705849840871,-1800.00005,0.00023,2]
[312384122,1705849841237,-892.45022687,0.00023,2]
[312384155,1705849841395,-1000.0,0.00023,2]
[312384256,1705849842690,-1000.0,0.00023,2]
[312384257,1705849842772,-1168.14167637,0.00023,2]
[312384278,1705849845652,-164.91642352,0.00021699,2]
[312384280,1705849845662,-332.06357648,0.000229,2]
[312384283,1705849845768,-463.14163568,0.000229,2]
[312384459,1705849853937,3196.91798374,0.0002,2]
[312384460,1705849871935,698.05875192,0.0002,2]
[312384461,1705849878140,32.37878435,0.0002,2]
[312384463,1705849979359,1650.0,0.00036328,120]
[312384464,1705850024148,1302.90908319,0.00036332,30]
[312384465,1705850110672,279.28,0.00018901,2]
[312384468,1705850293144,182.77,0.00030765,120]
[312384469,1705850326760,3128.27475178,0.000195,2]
[312384470,1705850329776,419.80578895,0.000195,2]
[312384471,1705850331070,310.36952965,0.000195,2]
[312384472,1705850333800,16665.318034,0.00019403,2]
[312384473,1705850333840,253.12049948,0.000195,2]
[312384474,1705850340494,3146.46623038,0.000195,2]
[312384475,1705850340619,16772.65978305,0.000195,2]
[312384476,1705850345222,361.93844403,0.000195,2]
[312384477,1705850346743,2837.52619066,0.00018994,2]
[312384478,1705850353441,3192.30886784,0.000195,2]
[312384479,1705850357813,43027.9624259,0.000195,2]
[312384480,1705850367346,2205.15046918,0.00019194,2]
[312384482,1705850424779,501.74130467,0.000195,2]
[312384484,1705850459713,2000.0,0.00036332,30]
[312384486,1705850485165,1002.51,0.00019267,2]
[312384487,1705850504506,150.27,0.0001949,2]
[312384488,1705850520926,283.0,0.00017283,2]
[312384489,1705850524121,206.0,0.00018608,2]
[312384490,1705850540154,476.42,0.00019177,2]
[312384491,1705850543825,500.0,0.00019177,2]
[312384492,1705850552890,954.93,0.00019178,2]
[312384493,1705850587428,250.0,0.00019177,2]
[312384494,1705850606727,150.0,0.00036342,30]
[312384495,1705850612857,155.0,0.000195,2]
[312384496,1705850618731,150.0,0.00036342,30]
[312384497,1705850630339,199.8483,0.00036342,40]
[312384498,1705850647358,1071.38976877,0.000195,2]
[312384499,1705850652717,10758.5,0.00019177,2]
[312384500,1705850674950,10782.98,0.00019153,2]
[312384501,1705850679689,1371.13574099,0.000195,2]
[312384502,1705850681062,337.83769447,0.000195,2]
[312384503,1705850687405,155.0,0.000195,2]
[312384504,1705850694634,1557.5,0.00019153,2]
[312384505,1705850706882,800.0,0.00019153,2]
[312384506,1705850770996,164.84860374,0.00019447,2]
[312384507,1705850771235,186.28,0.00019153,10]
[312384508,1705850774624,182.79,0.00019126,2]
[312384509,1705850786876,178.97,0.00019103,2]
[312384510,1705850787086,178.97,0.00019198,2]
[312384511,1705850787287,178.97,0.00019294,2]
[312384512,1705850787495,178.97,0.00019389,2]
[312384513,1705850787698,178.97,0.00019485,2]
[312384514,1705850816017,5590.42,0.00019103,2]
[312384515,1705850841545,1208.62,0.00019118,2]
[312384516,1705850856178,640.23,0.00019118,2]
[312384517,1705850864214,1364.04,0.0001927,2]
[312384518,1705850884929,200.0,0.00019118,2]
[312384519,1705850887433,-150.0,0.00019501,2]
[312384520,1705850887578,-150.0,0.00019501,2]
[312384521,1705850887661,-150.0,0.00019501,2]
[312384522,1705850924153,177.94905855,0.000195,2]
[312384523,1705850956112,488.35690352,0.000195,2]
[312384524,1705850974779,524.29723509,0.000195,2]
[312384571,1705851031986,-266.12897824,0.00019501,2]
[312384573,1705851031998,-838.53372,0.00019501,2]
[312384608,1705851032324,-1402.25005701,0.00019501,2]
[312384611,1705851032338,-670.48786624,0.00019501,2]
[312384613,1705851032347,-93.87975191,0.00019547,2]
[312384616,1705851032367,-189.12024809,0.00019547,2]
[312384618,1705851032377,-150.27,0.00019694,2]
[312384620,1705851032387,-150.18,0.00019757,2]
[312384622,1705851032396,-186.28,0.00019779,10]
[312384624,1705851032405,-150.18,0.00019821,2]
[312384626,1705851032414,-93.22089814,0.00019886,2]
[312384628,1705851032425,-56.95910186,0.00019886,2]
[312384630,1705851032434,-150.27,0.00019898,2]
[312384632,1705851032444,-415.14295002,0.000199,2]
[312384634,1705851032453,-33777.29662701,0.00019937,2]
[312384636,1705851032462,-567.04871616,0.00019938,2]
[312384638,1705851032471,-2916.89243027,0.00019938,2]
[312384640,1705851032481,-417.52146026,0.00019938,2]
[312384642,1705851032490,-376.165677,0.00019938,2]
[312384644,1705851032499,-300.19258432,0.00019938,2]
[312384646,1705851032509,-155.31278064,0.00019938,2]
[312384648,1705851032519,-235.65900379,0.00019938,2]
[312384650,1705851032528,-202.04855899,0.00019938,2]
[312384652,1705851032537,-320.01651652,0.00019938,2]
[312384654,1705851032548,-526.52,0.00019938,2]
[312384656,1705851032557,-1170.04,0.00019938,2]
[312384658,1705851032566,-487.91115194,0.00019938,2]
[312384660,1705851032576,-406.94668334,0.00019938,2]
[312384662,1705851032585,-637.65870148,0.00019939,2]
[312384664,1705851032594,-164.84860372,0.0001994,2]
[312384666,1705851032603,-1024.54,0.0001994,2]
[312384668,1705851032612,-1301.7,0.0001994,2]
[312384670,1705851032622,-499.99,0.0001994,2]
[312384672,1705851032631,-86540.18,0.0001994,2]
[312384674,1705851032640,-150.18,0.0001995,2]
[312384676,1705851032650,-370.86749848,0.00019984,2]
[312384678,1705851032659,-2981.16,0.00019984,2]
[312384680,1705851032668,-299.76563397,0.00019993,2]
[312384682,1705851032677,-516.62500609,0.00019994,2]
[312384684,1705851032686,-156.77132149,0.00019994,2]
[312384686,1705851032695,-155.48396173,0.00019994,2]
[312384688,1705851032705,-260.34839594,0.00019994,2]
[312384690,1705851032716,-359.64122164,0.00019994,2]
[312384692,1705851032725,-10579.69211937,0.00019994,2]
[312384694,1705851032736,-1243.36910934,0.00019994,2]
[312384696,1705851032745,-310.52074565,0.00019995,2]
[312384699,1705851032755,-1398.13352868,0.00019995,2]
[312384701,1705851032767,-15362.49242979,0.00019995,2]
[312384703,1705851032776,-2999.58839383,0.00019997,2]
[312384705,1705851032790,-272.46365372,0.00019997,2]
[312384707,1705851032801,-1974.8225,0.00019997,2]
[312384711,1705851032824,-664.97071954,0.00019997,2]
[312384713,1705851032836,-526.75888257,0.00019997,2]
[312384715,1705851032844,-101.66111743,0.00019997,2]
[312384717,1705851032857,-55.21368031,0.00019997,2]
[312384719,1705851032867,-3935.89563762,0.00019997,2]
[312384721,1705851032876,-260.19907905,0.00019997,2]
[312384723,1705851032885,-155.0,0.00019997,2]
[312384725,1705851032895,-473.29314073,0.00019997,2]
[312384726,1705851032903,-1256.24889353,0.00019997,2]
[312384727,1705851032912,-155.60115451,0.00019997,2]
[312384728,1705851032921,-343.09423097,0.00019997,2]
[312384729,1705851032930,-250.33246589,0.00019997,2]
[312384730,1705851032939,-368.01428488,0.00019997,2]
[312384731,1705851032947,-157.9801797,0.00019997,2]
[312384732,1705851032957,-251.70188647,0.00019997,2]
[312384733,1705851032966,-640.3877892,0.00019997,2]
[312384734,1705851032975,-262.5953698,0.00019997,2]
[312384735,1705851032984,-155.92659979,0.00019997,2]
[312384736,1705851032993,-230.96037065,0.00019997,2]
[312384737,1705851033009,-151.54684195,0.00019997,2]
[312384739,1705851033018,-1224.40629802,0.00019997,2]
[312384741,1705851033027,-33.82839761,0.00019997,2]
[312384743,1705851033039,-852.29796738,0.00019997,2]
[312384745,1705851033048,-342.79772441,0.00019997,2]
[312384747,1705851033057,-199.1732315,0.00019997,2]
[312384749,1705851033066,-500.32622668,0.00019998,2]
[312384751,1705851033075,-9084.40484998,0.00019999,2]
[312384753,1705851033087,-543.29728188,0.00019999,2]
[312384756,1705851033098,-480.00571192,0.00019999,2]
[312384794,1705851033446,-19439.97349041,0.00019999,2]
[312384797,1705851033461,-30822.99579481,0.00019999,2]
[312384799,1705851033475,-112846.210749,0.00019999,2]
[312384802,1705851033486,-4133.54788556,0.00019999,2]
[312384922,1705851037842,-997.83561259,0.00019999,2]
[312384923,1705851037854,-3779.24952656,0.00019999,2]
[312384924,1705851037865,-3704.77177377,0.00019999,2]
[312384925,1705851037876,-2610.40666984,0.00019999,2]
[312384926,1705851038015,-350.01634122,0.00019999,2]
[312384927,1705851038064,-82816.35054672,0.00019999,2]
[312384928,1705851038076,-24008.0721351,0.00019999,2]
[312384929,1705851038101,-164851.08274844,0.00019999,2]
[312384930,1705851038110,-2973.45589962,0.0002,2]
[312384931,1705851038120,-357.21207229,0.0002,2]
[312384932,1705851038131,-4490.4877716,0.0002,2]
[312384933,1705851038141,-247.24074097,0.0002,2]
[312384934,1705851038151,-1386.38282133,0.0002,2]
[312384935,1705851038160,-150.18,0.00020014,2]
[312384936,1705851038169,-150.18,0.00020079,2]
[312384937,1705851038179,-150.27,0.00020101,2]
[312384938,1705851038189,-150.18,0.00020143,2]
[312384939,1705851038198,-150.18,0.00020207,2]
[312384940,1705851038207,-150.18,0.00020272,2]
[312384941,1705851038217,-150.27,0.00020305,2]
[312384943,1705851038226,-150.18,0.00020336,2]
[312384944,1705851038235,-150.18,0.000204,2]